fUSD/lending_fUSD_20250228
["ID","MTS","AMOUNT","RATE_DAILY","PERIOD"]
[354793309,1740707445518,-500.0,0.00016111,2]
[354793313,1740707445529,-155.588406,0.00016111,2]
[354793315,1740707445539,-500.0,0.00016111,2]
[354793318,1740707445548,-500.0,0.00016111,2]
[354793321,1740707445558,-500.0,0.00016111,2]
[354793323,1740707445567,-500.0,0.00016111,2]
[354793325,1740707445576,-500.0,0.00016111,2]
[354793327,1740707445586,-500.0,0.00016111,2]
[354793329,1740707445595,-500.0,0.00016111,2]
[354793331,1740707445604,-500.0,0.00016111,2]
[354793333,1740707445613,-500.0,0.00016111,2]
[354793335,1740707445621,-500.0,0.00016111,2]
[354793337,1740707445631,-500.0,0.00016111,2]
[354793339,1740707445640,-500.0,0.00016111,2]
[354793342,1740707445650,-500.0,0.00016111,2]
[354793344,1740707445659,-500.0,0.00016111,2]
[354793346,1740707445668,-500.0,0.00016111,2]
[354793348,1740707445677,-500.0,0.00016111,2]
[354793350,1740707445686,-500.0,0.00016111,2]
[354793352,1740707445695,-500.0,0.00016111,2]
[354793354,1740707445704,-500.0,0.00016111,2]
[354793356,1740707445713,-500.0,0.00016111,2]
[354793358,1740707445725,-505.0,0.00016111,2]
[354793360,1740707445735,-500.0,0.00016111,2]
[354793362,1740707445744,-500.0,0.00016111,2]
[354793364,1740707445753,-500.0,0.00016111,2]
[354793366,1740707445762,-500.0,0.00016111,2]
[354793368,1740707445771,-500.0,0.00016111,2]
[354793370,1740707445780,-500.0,0.00016111,2]
[354793372,1740707445790,-500.0,0.00016111,2]
[354793374,1740707445799,-500.0,0.00016111,2]
[354793376,1740707445808,-500.0,0.00016111,2]
[354793378,1740707445817,-500.0,0.00016111,2]
[354793380,1740707445827,-500.0,0.00016111,2]
[354793381,1740707445836,-500.0,0.00016111,2]
[354793382,1740707445846,-500.0,0.00016111,2]
[354793383,1740707445855,-500.0,0.00016111,2]
[354793385,1740707445865,-500.0,0.00016111,2]
[354793387,1740707445874,-500.0,0.00016111,2]
[354793389,1740707445885,-504.0,0.00016111,2]
[354793391,1740707445894,-151.936803,0.00016111,2]
[354793393,1740707445903,-151.0,0.00016111,2]
[354793395,1740707445912,-151.512102,0.00016111,2]
[354793397,1740707445922,-2021.06977899,0.00016111,2]
[354793399,1740707445931,-957.63391585,0.00016111,2]
[354793401,1740707445940,-151.0,0.00016116,2]
[354793403,1740707445949,-151.0,0.00016116,2]
[354793405,1740707445958,-151.0,0.00016116,2]
[354793407,1740707445968,-151.0,0.00016116,2]
[354793409,1740707445977,-365.02349115,0.00016199,2]
[354793410,1740707445986,-779.0,0.00016368,2]
[354793412,1740707445996,-450.0,0.00016368,2]
[354793414,1740707446005,-18872.08,0.00016368,2]
[354793416,1740707446014,-150.0,0.0001639,2]
[354793418,1740707446024,-19174.57,0.0001639,2]
[354793420,1740707446034,-18607.73,0.0001639,2]
[354793422,1740707446043,-450.0,0.0001639,2]
[354793424,1740707446053,-450.0,0.000165,2]
[354793426,1740707446062,-150.0,0.000165,2]
[354793428,1740707446072,-184.08,0.00016712,2]
[354793430,1740707446081,-1239.0,0.000173,2]
[354793432,1740707446091,-2021.06977899,0.00017322,2]
[354793434,1740707446100,-957.63391585,0.00017322,2]
[354793436,1740707446109,-372.09,0.00017354,2]
[354793438,1740707446119,-300.0,0.00017367,2]
[354793440,1740707446128,-200.0,0.00017424,2]
[354793442,1740707446137,-708.13,0.00017433,2]
[354793444,1740707446147,-151.0,0.00017442,2]
[354793446,1740707446157,-153.337993,0.00017442,2]
[354793448,1740707446166,-153.024503,0.00017442,2]
[354793450,1740707446175,-151.0,0.00017442,2]
[354793452,1740707446186,-151.0,0.00017442,2]
[354793455,1740707446197,-151.0,0.00017442,2]
[354793456,1740707446206,-151.0,0.00017442,2]
[354793458,1740707446216,-151.0,0.00017442,2]
[354793460,1740707446226,-151.0,0.00017442,2]
[354793462,1740707446235,-151.0,0.00017442,2]
[354793464,1740707446244,-23900.0,0.00017442,2]
[354793466,1740707446253,-500.0,0.00017443,2]
[354793468,1740707446263,-150.0,0.00017455,2]
[354793470,1740707446272,-1819.01,0.00017458,2]
[354793472,1740707446281,-250.0,0.00017461,2]
[354793475,1740707446291,-639.22,0.00017463,2]
[354793476,1740707446301,-164.77,0.00017465,2]
[354793479,1740707446310,-4665.06,0.00017485,2]
[354793482,1740707446325,-2537.69,0.00017491,2]
[354793484,1740707446335,-4298.36,0.00017519,2]
[354793486,1740707446344,-510.16,0.00017523,2]
[354793488,1740707446354,-804.26,0.00017523,2]
[354793491,1740707446363,-1377.78,0.00017525,2]
[354793494,1740707446373,-1000.0,0.00017527,2]
[354793497,1740707446383,-150.0,0.00017546,7]
[354793499,1740707446393,-192.768767,0.00017564,2]
[354793503,1740707446403,-151.0,0.00017564,2]
[354793506,1740707446413,-160.793404,0.00017564,2]
[354793509,1740707446423,-157.55383,0.00017564,2]
[354793511,1740707446431,-157.76,0.00017566,2]
[354793514,1740707446441,-170.29,0.00017721,2]
[354793517,1740707446450,-157.76,0.00017786,2]
[354793520,1740707446459,-616.35,0.00017874,2]
[354793522,1740707446470,-500.0,0.00017899,2]
[354793526,1740707446482,-500.0,0.00017926,2]
[354793528,1740707446492,-500.0,0.00017954,2]
[354793531,1740707446503,-459.21099581,0.00017981,2]
[354793534,1740707446841,-459.33512711,0.00017981,2]
[354793535,1740707446850,-168.5,0.00017983,2]
[354793536,1740707446860,-157.76,0.00018005,2]
[354793537,1740707446869,-170.29,0.00018075,2]
[354793538,1740707446878,-157.76,0.00018225,2]
[354793539,1740707446888,-179.01,0.00018241,2]
[354793540,1740707446898,-209.09,0.00018262,2]
[354793541,1740707446907,-708.13,0.00018304,2]
[354793542,1740707446916,-209.09,0.00018359,2]
[354793543,1740707446926,-170.29,0.0001843,2]
[354793544,1740707446935,-157.76,0.00018445,2]
[354793545,1740707446946,-209.09,0.00018455,2]
[354793546,1740707446955,-159.34,0.00018486,2]
[354793547,1740707446965,-2021.06977899,0.00018533,2]
[354793548,1740707446978,-957.63391585,0.00018533,2]
[354793549,1740707446987,-209.09,0.00018551,2]
[354793550,1740707446997,-209.09,0.00018647,2]
[354793551,1740707447006,-157.76,0.00018664,2]
[354793552,1740707447015,-1276.0,0.0001867,2]
[354793553,1740707447024,-2029.0,0.0001867,2]
[354793554,1740707447034,-640.0,0.0001867,2]
[354793555,1740707447043,-571.606,0.0001867,2]
[354793556,1740707447052,-150.751,0.0001867,2]
[354793557,1740707447062,-651.68557952,0.0001867,2]
[354793559,1740707448117,-971.31442048,0.0001867,2]
[354793560,1740707448126,-789.0,0.0001867,2]
[354793561,1740707448136,-1268.0,0.0001867,2]
[354793562,1740707448146,-912.287,0.0001867,2]
[354793563,1740707448156,-541.226,0.0001867,2]
[354793564,1740707448166,-1433.421,0.0001867,2]
[354793565,1740707448175,-151.0,0.0001867,2]
[354793566,1740707448185,-151.0,0.0001867,2]
[354793567,1740707448195,-151.0,0.0001867,2]
[354793568,1740707448204,-151.0,0.0001867,2]
[354793569,1740707448214,-151.0,0.0001867,2]
[354793570,1740707448224,-151.0,0.0001867,2]
[354793571,1740707448234,-151.0,0.0001867,2]
[354793572,1740707448244,-3925.0,0.0001867,2]
[354793573,1740707448254,-1015.552,0.0001867,2]
[354793574,1740707448264,-265.827,0.0001867,2]
[354793575,1740707448274,-159.249,0.0001867,2]
[354793576,1740707448284,-165.26,0.0001867,2]
[354793577,1740707448293,-209.09,0.00018743,2]
[354793578,1740707448303,-170.29,0.00018784,2]
[354793579,1740707448313,-200.25579532,0.000188,2]
[354793580,1740707448323,-200.25579523,0.000188,2]
[354793581,1740707448333,-200.25579523,0.000188,2]
[354793582,1740707448343,-194.91,0.00018833,2]
[354793583,1740707448353,-209.09,0.00018839,2]
[354793584,1740707448363,-157.76,0.00018884,2]
[354793585,1740707448373,-209.09,0.00018935,2]
[354793586,1740707448383,-3555.83333754,0.00019,5]
[354793587,1740707448398,-11678.34396631,0.00019,5]
[354793588,1740707448408,-151.0,0.00019,2]
[354793589,1740707448418,-151.0,0.00019,2]
[354793590,1740707448428,-162.198915,0.00019,2]
[354793591,1740707448438,-151.0,0.00019,2]
[354793592,1740707448447,-147.10681952,0.00019,2]
[354793593,1740707448496,-106.65994148,0.00019,2]
[354793594,1740707448505,-151.0,0.00019,2]
[354793595,1740707448514,-151.0,0.00019,2]
[354793596,1740707448524,-151.0,0.00019,2]
[354793597,1740707448533,-151.797406,0.00019,2]
[354793598,1740707448542,-209.09,0.00019031,2]
[354793599,1740707448551,-157.76,0.00019103,2]
[354793600,1740707448560,-209.09,0.00019127,2]
[354793601,1740707448572,-170.29,0.00019138,2]
[354793602,1740707448582,-708.13,0.00019176,2]
[354793603,1740707448592,-151.0,0.00019178,2]
[354793604,1740707448602,-42.97458067,0.00019178,2]
[354793605,1740707448633,-222.46111133,0.00019178,2]
[354793606,1740707448644,-200.0,0.00019185,2]
[354793607,1740707448653,-209.09,0.00019223,2]
[354793608,1740707448663,-209.09,0.0001932,2]
[354793609,1740707448672,-151.0,0.0001932,2]
[354793610,1740707448682,-151.0,0.0001932,2]
[354793611,1740707448691,-151.0,0.0001932,2]
[354793612,1740707448700,-151.0,0.0001932,2]
[354793613,1740707448710,-151.0,0.0001932,2]
[354793614,1740707448720,-157.76,0.00019323,2]
[354793615,1740707448729,-151.0,0.00019323,2]
[354793616,1740707448739,-159.34,0.00019411,2]
[354793617,1740707448748,-209.09,0.00019416,2]
[354793618,1740707448757,-170.29,0.00019493,2]
[354793619,1740707448767,-209.09,0.00019512,2]
[354793620,1740707448776,-668.35818201,0.000196,2]
[354793621,1740707448795,-738.11958943,0.000196,2]
[354793622,1740707448805,-155.272973,0.000196,2]
[354793623,1740707448815,-151.0,0.000196,2]
[354793624,1740707448824,-209.09,0.00019608,2]
[354793625,1740707448833,-164.77,0.00019648,2]
[354793626,1740707448843,-209.09,0.00019704,2]
[354793627,1740707448852,-1000.0,0.00019718,2]
[354793628,1740707448861,-2021.06977899,0.00019744,2]
[354793629,1740707448871,-957.63391585,0.00019744,2]
[354793630,1740707448880,-209.09,0.000198,2]
[354793631,1740707448889,-200.25579523,0.00019864,2]
[354793632,1740707448899,-209.09,0.00019896,2]
[354793633,1740707448908,-179.66630706,0.000199,2]
[354793634,1740707448917,-209.09,0.00019992,2]
[354793635,1740707448927,-709.50843734,0.0002,15]
[354793636,1740707448935,-3532.42234083,0.00020005,2]
[354793637,1740707448947,-401.0,0.00020005,2]
[354793638,1740707448958,-1858.71754037,0.00020005,2]
[354793661,1740707450504,-3686.6795347,0.00020005,2]
[354793663,1740707450513,-16891.3161127,0.00020005,2]
[354793665,1740707450523,-151.0,0.00020033,2]
[354793667,1740707450533,-708.13,0.00020047,2]
[354793669,1740707450543,-209.09,0.00020088,2]
[354793671,1740707450552,-616.35,0.00020138,2]
[354793673,1740707450561,-194.91,0.00020202,2]
[354793675,1740707450572,-159.34,0.00020335,2]
[354793677,1740707450582,-1000.0,0.00020452,2]
[354793679,1740707450591,-708.13,0.00020919,2]
[354793681,1740707450600,-2021.06977899,0.00020956,2]
[354793682,1740707450610,-250.0,0.00021,2]
[354793684,1740707450620,-200.25579523,0.00021186,2]
[354793686,1740707450630,-179.01,0.00021251,2]
[354793688,1740707450639,-797.8,0.0002164,2]
[354793690,1740707450648,-776.84,0.0002164,2]
[354793692,1740707450658,-776.21,0.0002164,2]
[354793694,1740707450667,-159.987,0.0002167,2]
[354793696,1740707450676,-2029.0,0.0002167,2]
[354793698,1740707450687,-640.0,0.0002167,2]
[354793700,1740707450696,-570.0,0.0002167,2]
[354793702,1740707450705,-150.0,0.0002167,2]
[354793704,1740707450715,-1623.0,0.0002167,2]
[354793706,1740707450727,-785.0,0.0002167,2]
[354793708,1740707450736,-1268.0,0.0002167,2]
[354793710,1740707450745,-909.0,0.0002167,2]
[354793712,1740707450754,-540.0,0.0002167,2]
[354793714,1740707450764,-1426.0,0.0002167,2]
[354793716,1740707450773,-151.0,0.0002167,2]
[354793718,1740707450783,-151.0,0.0002167,2]
[354793720,1740707450793,-154.2674,0.0002167,2]
[354793722,1740707450802,-153.085248,0.0002167,2]
[354793724,1740707450811,-298.786053,0.0002167,2]
[354793726,1740707450821,-151.0,0.0002167,2]
[354793728,1740707450830,-151.0,0.0002167,2]
[354793730,1740707450839,-3925.0,0.0002167,2]
[354793732,1740707450848,-1011.0,0.0002167,2]
[354793734,1740707450858,-150.0,0.0002167,2]
[354793736,1740707450867,-164.77,0.00021831,2]
[354793738,1740707450876,-151.0,0.00021831,2]
[354793740,1740707450886,-1000.0,0.00021909,2]
[354793742,1740707450895,-151.0,0.00021909,2]
[354793744,1740707450904,-151.0,0.00021909,2]
[354793746,1740707450915,-151.0,0.00021909,2]
[354793748,1740707450924,-151.0,0.00021909,2]
[354793750,1740707450933,-151.0,0.00021909,2]
[354793751,1740707450942,-189.48,0.00021918,2]
[354793752,1740707450952,-2021.06977899,0.00022167,2]
[354793753,1740707450961,-616.35,0.00022402,2]
[354793755,1740707450970,-200.25579523,0.00022507,3]
[354793756,1740707450980,-151.0,0.00022633,7]
[354793757,1740707450989,-300.0,0.00023,2]
[354793759,1740707450999,-2021.06977899,0.00023378,2]
[354793760,1740707451008,-150.0,0.00023557,2]
[354793761,1740707451017,-150.64,0.00023557,2]
[354793762,1740707451027,-150.0,0.00023557,2]
[354793763,1740707451036,-439.68,0.00023557,2]
[354793764,1740707451045,-150.0,0.00023557,2]
[354793765,1740707451054,-150.97,0.00023557,2]
[354793766,1740707451063,-150.0,0.00023557,2]
[354793767,1740707451072,-150.0,0.00023557,2]
[354793768,1740707451081,-439.68,0.00023557,2]
[354793769,1740707451090,-150.0,0.00023557,2]
[354793770,1740707451099,-150.0,0.00023557,2]
[354793771,1740707451108,-150.0,0.00023557,2]
[354793772,1740707451118,-150.0,0.00023557,2]
[354793773,1740707451126,-150.0,0.00023557,2]
[354793774,1740707451136,-150.0,0.00023557,2]
[354793775,1740707451145,-150.0,0.00023557,2]
[354793777,1740707451154,-150.0,0.00023557,2]
[354793778,1740707451163,-150.0,0.00023557,2]
[354793779,1740707451173,-439.68,0.00023557,2]
[354793781,1740707451182,-150.0,0.00023557,2]
[354793782,1740707451191,-150.0,0.00023557,2]
[354793783,1740707451200,-150.0,0.00023557,2]
[354793784,1740707451210,-439.2,0.00023557,2]
[354793785,1740707451219,-150.0,0.00023557,2]
[354793786,1740707451230,-151.75,0.00023557,2]
[354793787,1740707451240,-153.2,0.00023557,2]
[354793788,1740707451249,-151.1,0.00023557,2]
[354793789,1740707451259,-249.15,0.00023557,2]
[354793790,1740707451268,-150.0,0.00023557,2]
[354793791,1740707451278,-200.25579523,0.00023829,3]
[354793792,1740707451287,-177.29,0.00023836,2]
[354793793,1740707451295,-164.77,0.00024014,2]
[354793794,1740707451305,-1000.0,0.000241,2]
[354793795,1740707451314,-1819.01,0.00024441,2]
[354793796,1740707451323,-152.0,0.00024445,3]
[354793797,1740707451333,-2021.06977899,0.00024589,2]
[354793798,1740707451342,-151.0,0.00024589,7]
[354793799,1740707451351,-616.35,0.00024666,2]
[354793800,1740707451361,-1167.545,0.0002467,2]
[354793801,1740707451371,-640.0,0.0002467,2]
[354793802,1740707451380,-570.0,0.0002467,2]
[354793803,1740707451390,-1623.0,0.0002467,2]
[354793804,1740707451400,-563.902,0.0002467,2]
[354793805,1740707451409,-540.0,0.0002467,2]
[354793807,1740707451418,-151.0,0.0002467,7]
[354793808,1740707451427,-151.0,0.0002467,7]
[354793809,1740707451436,-3925.0,0.0002467,2]
[354793810,1740707451446,-151.0,0.0002467,7]
[354793811,1740707451455,-150.0,0.0002467,2]
[354793812,1740707451463,-181.318862,0.0002467,7]
[354793813,1740707451473,-151.0,0.0002467,7]
[354793814,1740707451487,-151.0,0.0002467,7]
[354793815,1740707451495,-167.89,0.00024712,30]
[354793816,1740707451505,-152.0,0.00024743,4]
[354793817,1740707451514,-1532.48059549,0.00025,2]
[354793818,1740707451523,-350.0,0.00025,2]
[354793819,1740707451534,-152.0,0.0002504,5]
[354793820,1740707451544,-200.25579523,0.0002515,4]
[354793821,1740707451553,-152.0,0.00025338,6]
[354793822,1740707451567,-152.0,0.00025635,7]
[354793823,1740707451576,-916.81748017,0.000257,2]
[354793824,1740707451585,-153.20012773,0.000258,2]
[354793825,1740707451594,-288.53444139,0.000258,2]
[354793826,1740707451603,-2021.06977899,0.000258,2]
[354793827,1740707451612,-6095.51568912,0.000258,2]
[354793828,1740707451622,-2945.93268989,0.000258,2]
[354793830,1740707451631,-171.0,0.00025863,2]
[354793831,1740707451640,-197.0,0.00025863,2]
[354793832,1740707451649,-150.5,0.0002587,30]
[354793833,1740707451658,-150.5,0.0002588,30]
[354793835,1740707451668,-150.5,0.0002589,30]
[354793836,1740707451677,-204.70992364,0.00025898,2]
[354793837,1740707451687,-1152.10586708,0.00025899,10]
[354793838,1740707451698,-3435.30742569,0.00025899,2]
[354793839,1740707451710,-1155.04800563,0.00025899,10]
[354793840,1740707451719,-1155.04800562,0.00025899,10]
[354793841,1740707451731,-70030.91518125,0.000259,2]
[354793842,1740707451748,-309.5768505,0.000259,2]
[354793843,1740707451767,-3284.44,0.000259,2]
[354793844,1740707451779,-22620.91342596,0.000259,2]
[354793845,1740707451790,-2193.13331249,0.000259,2]
[354793846,1740707451801,-1755.40352702,0.000259,2]
[354793847,1740707451819,-82997.52778844,0.000259,2]
[354793848,1740707451829,-7216.64268312,0.000259,2]
[354793849,1740707451840,-18603.43908475,0.000259,2]
[354793856,1740707452319,-151.0,0.00019,2]
[354793857,1740707452328,-621.75609101,0.000259,2]
[354793890,1740707455470,-3803326.00316851,0.000259,2]
[354793892,1740707455484,-151.0,0.000259,7]
[354793893,1740707455494,-151.0,0.000259,7]
[354793894,1740707455504,-151.0,0.000259,7]
[354793895,1740707455513,-151.0,0.000259,7]
[354793896,1740707455523,-213.013528,0.000259,7]
[354793897,1740707455532,-151.0,0.000259,7]
[354793898,1740707455541,-158.023797,0.000259,7]
[354793899,1740707455550,-151.0,0.000259,7]
[354793900,1740707455560,-151.0,0.000259,7]
[354793901,1740707455569,-151.987964,0.000259,7]
[354793902,1740707455580,-151.0,0.000259,7]
[354793903,1740707455589,-151.0,0.000259,7]
[354793904,1740707455599,-161.704255,0.000259,7]
[354793905,1740707455608,-151.0,0.000259,7]
[354793906,1740707455617,-151.0,0.000259,7]
[354793907,1740707455626,-151.0,0.000259,7]
[354793908,1740707455635,-151.0,0.000259,7]
[354793909,1740707455644,-152.0,0.00025933,8]
[354793910,1740707455653,-7089.1589403,0.0002597,2]
[354793911,1740707455663,-160640.67173976,0.0002598,10]
[354793912,1740707455672,-151.0,0.0002598,7]
[354793913,1740707455681,-151.0,0.0002598,7]
[354793914,1740707455690,-151.0,0.0002598,7]
[354793916,1740707455700,-151.0,0.0002598,7]
[354793917,1740707455709,-301.103159,0.0002598,7]
[354793918,1740707455719,-188.282586,0.0002598,7]
[354793920,1740707455730,-159.900294,0.0002598,7]
[354793921,1740707455743,-151.0,0.0002598,7]
[354793923,1740707455752,-151.0,0.0002598,7]
[354793924,1740707455761,-301.520934,0.0002598,7]
[354793925,1740707455771,-151.0,0.0002598,7]
[354793926,1740707455780,-151.0,0.0002598,7]
[354793927,1740707455789,-151.0,0.0002598,7]
[354793928,1740707455799,-164.77,0.00026197,2]
[354793930,1740707455975,-152.0,0.0002623,9]
[354793931,1740707455984,-1000.0,0.00026291,2]
[354793932,1740707455993,-200.25579523,0.00026471,4]
[354793933,1740707456002,-152.0,0.00026528,10]
[354793934,1740707456012,-242.10450725,0.00026528,5]
[354793935,1740707456021,-241.001,0.00026573,2]
[354793936,1740707456030,-210.12,0.00026849,2]
[354793937,1740707456041,-158.45,0.00026849,2]
[354793938,1740707456050,-161.16,0.00026849,2]
[354793939,1740707456059,-616.35,0.0002693,2]
[354793940,1740707456068,-150.0,0.00027,2]
[354793941,1740707456077,-400.0,0.00027,2]
[354793942,1740707456086,-249.86,0.00027393,2]
[354793943,1740707456095,-150.0,0.00027393,2]
[354793944,1740707456104,-150.0,0.00027393,2]
[354793945,1740707456113,-150.0,0.00027393,2]
[354793946,1740707456123,-150.32,0.00027393,2]
[354793947,1740707456132,-150.06,0.00027397,2]
[354793948,1740707456141,-878.02163641,0.0002745,2]
[354793949,1740707456150,-410.836,0.0002767,2]
[354793950,1740707456159,-218.436,0.0002767,2]
[354793951,1740707456168,-751.894,0.0002767,2]
[354793952,1740707456178,-150.0,0.0002767,2]
[354793953,1740707456187,-200.25579523,0.00027793,4]
[354793954,1740707456196,-1124.85410382,0.00028218,2]
[354793955,1740707456205,-1124.8541037,0.00028218,2]
[354793956,1740707456215,-1124.8541037,0.00028218,2]
[354793957,1740707456224,-1107.24698747,0.00028629,2]
[354793958,1740707456233,-1107.94191529,0.00028629,2]
[354793960,1740707456242,-150.0,0.00028919,2]
[354793961,1740707456252,-150.0,0.00028921,2]
[354793962,1740707456261,-150.0,0.00028928,2]
[354793963,1740707456270,-150.0,0.00028932,2]
[354793964,1740707456280,-150.0,0.00028933,2]
[354793965,1740707456289,-150.0,0.00028934,2]
[354793966,1740707456299,-150.0,0.00028937,2]
[354793967,1740707456308,-150.0,0.0002894,2]
[354793968,1740707456318,-201.27256819,0.00028948,2]
[354793969,1740707456327,-150.0,0.00028948,2]
[354793970,1740707456336,-150.0,0.00028949,2]
[354793971,1740707456345,-150.0,0.00028962,2]
[354793972,1740707456354,-150.0,0.00028963,2]
[354793973,1740707456364,-150.0,0.0002897,2]
[354793974,1740707456373,-150.0,0.00028971,2]
[354793975,1740707456382,-150.0,0.00028981,2]
[354793976,1740707456391,-150.0,0.00028983,2]
[354793977,1740707456401,-450.0,0.00029,2]
[354793978,1740707456410,-150.0,0.00029009,2]
[354793979,1740707456420,-150.0,0.00029027,2]
[354793980,1740707456430,-150.0,0.0002904,2]
[354793981,1740707456439,-150.0,0.00029043,2]
[354793982,1740707456454,-150.0,0.00029066,2]
[354793983,1740707456464,-150.0,0.00029073,2]
[354793984,1740707456475,-150.0,0.00029098,2]
[354793986,1740707456486,-510.704955,0.000291,2]
[354793987,1740707456499,-200.25579523,0.00029114,5]
[354793988,1740707456509,-150.0,0.00029117,2]
[354793989,1740707456518,-150.0,0.00029146,2]
[354793990,1740707456529,-150.0,0.00029155,2]
[354793991,1740707456539,-616.35,0.00029194,2]
[354793992,1740707456548,-1767.05660005,0.000292,30]
[354793993,1740707456557,-3532.0063301,0.00029218,2]
[354793994,1740707456567,-603.78736879,0.00029218,2]
[354793995,1740707456579,-15750.86668013,0.00029218,7]
[354793996,1740707456588,-9608.82218726,0.00029218,2]
[354793997,1740707456597,-184.08,0.000294,2]
[354793998,1740707456606,-500.0,0.00029781,2]
[354793999,1740707456615,-200.25579523,0.00030436,5]
[354794000,1740707456625,-1007.2879755,0.00030471,2]
[354794001,1740707456634,-150.0,0.0003067,2]
[354794002,1740707456643,-151.0,0.00031,7]
[354794003,1740707456652,-500.0,0.00031,2]
[354794004,1740707456662,-616.35,0.00031458,2]
[354794005,1740707456672,-167.89,0.0003175,30]
[354794006,1740707456682,-200.25579523,0.00031757,6]
[354794007,1740707456693,-150.0,0.00031993,120]
[354794008,1740707456702,-210.12,0.00032646,2]
[354794009,1740707456711,-550.0,0.00033,2]
[354794010,1740707456720,-200.25579523,0.00033079,6]
[354794011,1740707456731,-1124.8541037,0.00033114,5]
[354794012,1740707456740,-616.35,0.00033721,2]
[354794013,1740707456750,-150.0,0.00033972,120]
[354794014,1740707456759,-158.45,0.00034192,2]
[354794015,1740707456768,-150.06,0.00034247,2]
[354794016,1740707456777,-200.25579523,0.000344,6]
[354794017,1740707456786,-900.0,0.00035,36]
[354794018,1740707456795,-600.0,0.00035,2]
[354794019,1740707456804,-189.48,0.00035616,2]
[354794020,1740707456813,-200.25579523,0.00035721,7]
[354794021,1740707456822,-616.35,0.00035985,2]
[354794022,1740707456831,-151.0,0.00036321,7]
[354794023,1740707456840,-151.0,0.00036321,7]
[354794024,1740707456850,-151.0,0.00036321,7]
[354794025,1740707456859,-10063.55528435,0.00036326,120]
[354794026,1740707456868,-650.0,0.00037,2]
[354794028,1740707456877,-200.25579523,0.00037043,7]
[354794029,1740707456887,-292.17031809,0.000372,103]
[354794030,1740707456895,-867.38108013,0.00038,120]
[354794031,1740707456904,-616.35,0.00038249,2]
[354794032,1740707456913,-177.3,0.00038356,120]
[354794033,1740707456923,-200.25579523,0.00038364,8]
[354794034,1740707456931,-210.12,0.00038443,2]
[354794035,1740707456941,-233.461,0.00038525,52]
[354794036,1740707456950,-167.89,0.00038787,120]
[354794037,1740707456960,-288.53444139,0.0003885,2]
[354794038,1740707456969,-6095.5156891,0.0003885,2]
[354794039,1740707456980,-700.0,0.00039,2]
[354794040,1740707456989,-461.0,0.00039096,2]
[354794041,1740707456998,-1124.8541037,0.00039186,11]
[354794042,1740707457007,-200.25579523,0.00039686,8]
[354794043,1740707457016,-867.38108013,0.0004,120]
[354794044,1740707457026,-8296.56394509,0.0004,6]
[354794045,1740707457035,-151.0,0.0004,14]
[354794046,1740707457044,-151.0,0.0004,14]
[354794047,1740707457054,-151.0,0.0004,14]
[354794048,1740707457063,-151.0,0.0004,14]
[354794049,1740707457072,-248.4,0.000402,2]